bitfinex-derivatives/quotes_SOLF0:USTF0_20250212
["timestamp","ask_amount","ask_price","bid_price","bid_amount"]
[1739384949565,7.103e-05,193.37,193.36,19.606719]
[1739384952970,118.10567206,193.5,193.39,14.435319]
[1739384953268,103.67035306,193.5,193.39,14.435319]
[1739384953465,118.10567206,193.5,193.36,14.435319]
[1739384953672,5.1691,193.45,193.34,11.9952]
[1739384954071,0.03776707,193.41,193.38,0.03771971]
[1739384954677,0.03776707,193.41,193.4,5.1703]
[1739384959274,6.707e-05,193.41,193.4,5.1703]
[1739384962079,4.6986,193.51,193.49,5.1679]
[1739384962273,5.1672,193.52,193.49,5.1679]
[1739384962479,14.435319,193.56,193.42,14.435319]
[1739384962679,19.601419,193.56,193.52,5.1671]
[1739384962875,5.1661,193.56,193.52,5.1671]
[1739384963272,5.20416203,193.56,193.52,5.2010018]
[1739384964282,0.03806203,193.56,193.52,0.0339018]
[1739384964485,5.1666,193.55,193.52,0.0339018]
[1739384964877,5.1666,193.54,193.52,0.0339018]
[1739384965580,0.03806203,193.56,193.52,0.0339018]
[1739384965786,5.1664,193.55,193.52,0.0339018]
[1739384969290,0.03806203,193.56,193.52,5.2008018]
[1739384969489,0.03806203,193.56,193.52,0.0339018]
[1739384970290,0.03806203,193.56,193.54,5.1664]
[1739384970888,0.03806203,193.56,193.52,0.0339018]
[1739384971189,0.03806203,193.56,193.53,5.1669]
[1739384972093,0.03806203,193.56,193.54,5.1665]
[1739384974297,5.20426203,193.56,193.53,5.1669]
[1739384975088,5.20426203,193.56,193.52,0.0339018]
[1739384975297,5.20426203,193.56,193.52,5.2010018]
[1739384975490,14.47338103,193.56,193.52,5.2010018]
[1739384975696,5.1669,193.53,193.52,0.0339018]
[1739384975891,1.5327,193.55,193.48,5.1681]
[1739384976789,14.435319,193.53,193.48,5.1681]
[1739384976986,1.5327,193.55,193.5,0.03635279]
[1739384977185,1.5327,193.55,193.39,16.086319]
[1739384977186,14.435319,193.51,193.39,16.086319]
[1739384977499,14.435319,193.51,193.39,1.651]
[1739384977794,5.1679,193.5,193.45,5.1689]
[1739384978296,0.03710625,193.49,193.46,0.03849602]
[1739384980897,5.1684,193.48,193.46,0.03849602]
[1739384981399,5.1685,193.47,193.46,0.03849602]
[1739384981796,0.03710625,193.49,193.46,0.03849602]
[1739384981990,5.20510625,193.49,193.46,0.03849602]
[1739384984197,5.169,193.45,193.4,5.1701]
[1739384984400,14.435319,193.48,193.4,5.1701]
[1739384985196,5.1693,193.44,193.42,0.03529672]
[1739384985397,0.03764271,193.46,193.43,14.435319]
[1739384985593,4.271e-05,193.46,193.43,14.435319]
[1739384986302,3.1932,193.57,193.43,14.435319]
[1739384986498,1.5981,193.57,193.48,14.435319]
[1739384986694,103.61953064,193.58,193.48,14.435319]
[1739384987604,0.03329192,193.55,193.51,0.03508082]
[1739384989097,0.03329192,193.55,193.54,5.1666]
[1739384995904,9.192e-05,193.55,193.54,5.1666]
[1739385001210,9.192e-05,193.55,193.51,0.03508082]
[1739385001414,9.192e-05,193.55,193.52,5.1671]
[1739385003200,9.192e-05,193.55,193.51,0.03508082]
[1739385003403,9.192e-05,193.55,193.54,5.1666]
[1739385004812,9.192e-05,193.55,193.51,0.03508082]
[1739385005014,5.1667,193.54,193.51,0.03508082]
[1739385005218,1.5571,193.54,193.51,0.03508082]
[1739385005517,1.5997,193.53,193.51,0.03508082]
[1739385006009,5.1671,193.52,193.51,0.03508082]
[1739385006714,3.1176,193.54,193.51,0.03508082]
[1739385007114,5.16669192,193.55,193.51,0.03508082]
[1739385008015,5.1668,193.54,193.51,0.03508082]
[1739385008414,9.192e-05,193.55,193.51,0.03508082]
[1739385009111,9.192e-05,193.55,193.51,5.20228082]
[1739385009912,9.192e-05,193.55,193.53,5.1668]
[1739385011912,9.192e-05,193.55,193.54,5.1666]
[1739385016119,9.192e-05,193.55,193.51,0.03508082]
[1739385016419,14.4262627,193.53,193.51,0.03508082]
[1739385018116,5.1671,193.52,193.51,0.03508082]
[1739385018524,9.192e-05,193.55,193.51,0.03508082]
[1739385018823,5.16649192,193.55,193.51,0.03508082]
[1739385019019,14.4262627,193.53,193.51,0.03508082]
[1739385019224,14.4262627,193.53,193.41,1.5022]
[1739385019522,14.4262627,193.5,193.46,5.1686]
[1739385020423,14.46402854,193.5,193.46,5.20494479]
[1739385020625,0.03776584,193.5,193.46,5.20494479]
[1739385021127,0.03776584,193.5,193.48,5.1681]
[1739385021325,0.03776584,193.5,193.46,0.03634479]
[1739385021523,0.03776584,193.5,193.49,5.1679]
[1739385023526,0.03776584,193.5,193.46,0.03634479]
[1739385023724,14.46402854,193.5,193.46,0.03634479]
[1739385024330,5.1683,193.48,193.46,0.03634479]
[1739385025332,14.4262627,193.47,193.46,0.03634479]
[1739385025524,19.5947627,193.47,193.46,0.03634479]
[1739385025724,5.1685,193.47,193.46,0.03634479]
[1739385026221,23.10544063,193.48,193.41,5.17]
[1739385026425,5.1692,193.45,193.41,5.17]
[1739385027432,5.20334122,193.45,193.41,5.20496494]
[1739385028426,0.03414122,193.45,193.41,0.03496494]
[1739385029232,0.03414122,193.45,193.42,5.1698]
[1739385029627,0.03414122,193.45,193.41,0.03496494]
[1739385030324,0.03414122,193.45,193.44,5.1693]
[1739385035435,3.2708,193.55,193.41,0.03496494]
[1739385035630,19.12688035,193.67,193.33,3.125]
[1739385035631,1.6408,193.62,193.44,23.10544063]
[1739385035832,4.7081,193.62,193.45,3.2328]
[1739385036536,0.03368527,193.55,193.54,5.1664]
[1739385036836,5.1656,193.58,193.54,5.1664]
[1739385037034,0.03874065,193.56,193.54,5.1664]
[1739385038336,0.03874065,193.56,193.53,0.03560066]
[1739385039240,0.03874065,193.56,193.35,86.22464031]
[1739385039435,23.10544063,193.54,193.4,3.2094]
[1739385040434,0.03708729,193.49,193.45,0.03588885]
[1739385041239,5.1683,193.48,193.45,0.03588885]
[1739385041437,0.03708729,193.49,193.45,0.03588885]
[1739385042036,0.03708729,193.49,193.48,5.1682]
[1739385042339,1.5852,193.63,193.48,23.10544063]
[1739385042536,1.5852,193.63,193.52,23.10544063]
[1739385042839,26.25044063,193.69,193.52,23.10544063]
[1739385043041,84.68426365,193.68,193.53,1.5819]
[1739385043440,5.1634,193.67,193.61,5.1645]
[1739385043937,0.03386353,193.66,193.59,0.033054]
[1739385044743,23.13930416,193.66,193.59,0.033054]
[1739385045543,5.1648,193.61,193.59,0.033054]
[1739385045742,23.10544063,193.63,193.59,0.033054]
[1739385045944,1.6486662,193.62,193.59,0.033054]
[1739385046140,5.165,193.6,193.59,0.033054]
[1739385046544,5.165,193.6,193.47,1.6162]
[1739385046942,5.1661,193.56,193.5,5.1675]
[1739385047444,23.10544063,193.57,193.47,1.6162]
[1739385047644,5.1666,193.55,193.49,5.1679]
[1739385047838,0.03292695,193.54,193.5,0.03919976]
[1739385048647,5.1669,193.53,193.5,0.03919976]
[1739385048841,0.03292695,193.54,193.5,0.03919976]
[1739385049049,23.10544063,193.53,193.5,0.03919976]
[1739385049243,24.60984063,193.53,193.5,0.03919976]
[1739385049544,1.5044,193.53,193.5,0.03919976]
[1739385050543,5.1674,193.51,193.5,0.03919976]
[1739385050944,24.60984063,193.53,193.41,1.6003]
[1739385051136,1.5101,193.52,193.41,1.6003]
[1739385051939,23.10544063,193.5,193.33,1.654]
[1739385052143,0.03524849,193.48,193.45,0.03919746]
[1739385053043,5.1685,193.47,193.45,0.03919746]
[1739385053242,0.03524849,193.48,193.45,0.03919746]
[1739385054943,5.1685,193.47,193.45,0.03919746]
[1739385055546,0.03524849,193.48,193.45,0.03919746]
[1739385055748,5.1687,193.46,193.45,0.03919746]
[1739385056847,5.1696,193.43,193.39,5.1706]
[1739385057849,5.1687,193.47,193.42,5.1698]
[1739385058050,0.03947906,193.43,193.42,5.1698]
[1739385059845,1.5044,193.53,193.46,5.1687]
[1739385060241,24.60984063,193.53,193.4,3.1309]
[1739385060442,23.10544063,193.5,193.27,28.74154676]
[1739385060646,23.10544063,193.5,193.33,3.1061]
[1739385060850,1.5626,193.49,193.33,3.1061]
[1739385061051,0.03537779,193.43,193.41,5.17]
[1739385061255,1.5626,193.49,193.4,0.03396799]
[1739385061443,0.0374162,193.44,193.4,0.03396799]
[1739385062243,0.0374162,193.44,193.43,5.1696]
[1739385062442,0.0374162,193.44,193.4,0.03396799]
[1739385066450,5.1701,193.42,193.4,0.03396799]
[1739385067151,5.1696,193.43,193.4,0.03396799]
[1739385067853,5.17,193.42,193.4,0.03396799]
[1739385069157,23.10544063,193.41,193.3,1.5617]
[1739385069352,24.66044063,193.41,193.3,1.5617]
[1739385069552,24.66044063,193.41,193.29,7.15566877]
[1739385070151,5.1708,193.39,193.34,5.1718]
[1739385070358,0.03286693,193.37,193.34,5.1718]
[1739385070551,5.20416693,193.37,193.33,5.20980823]
[1739385071651,5.1717,193.35,193.33,0.03770823]
[1739385071853,0.03286693,193.37,193.29,7.15566877]
[1739385072049,23.10544063,193.35,193.29,7.15566877]
[1739385072356,5.1726,193.32,193.18,70.37966972]
[1739385072556,5.1726,193.32,193.2,23.10544063]
[1739385072751,5.1726,193.32,193.17,7.15566877]
[1739385072752,23.10544063,193.29,193.17,7.15566877]
[1739385072950,5.1737,193.28,193.17,7.15566877]
[1739385073150,0.03608711,193.25,193.21,0.03448194]
[1739385073448,0.03608711,193.25,193.21,5.20988194]
[1739385074555,0.03608711,193.25,193.21,0.03448194]
[1739385074756,23.10544063,193.23,193.17,7.15566877]
[1739385075255,5.1758,193.2,193.17,7.15566877]
[1739385075449,23.10544063,193.23,193.17,7.15566877]
[1739385075952,23.10544063,193.2,193.16,21.46700631]
[1739385076156,23.10544063,193.2,193.18,0.03447821]
[1739385076756,23.10544063,193.2,193.07,70.41701123]
[1739385077057,23.10544063,193.2,193.13,5.1776]
[1739385077953,0.03270942,193.18,193.15,0.02367987]
[1739385079852,0.03270942,193.18,193.09,5.1786]
[1739385079853,5.1771,193.15,193.09,5.1786]
[1739385080657,5.1772,193.15,193.1,5.1784]
[1739385080852,0.03879867,193.14,193.1,5.1784]
[1739385082262,23.1442393,193.14,193.06,1.5239]
[1739385082858,23.1442393,193.14,193.06,5.1792]
[1739385084163,5.1782,193.11,193.06,5.1792]
[1739385086459,23.1442393,193.14,193.01,1.5601]
[1739385086660,5.1778,193.13,193.07,5.179]
[1739385086861,23.10544063,193.14,193.07,5.179]
[1739385087062,23.10544063,193.11,193.01,1.5601]
[1739385087464,23.10544063,193.14,193.01,1.5601]
[1739385087665,0.0353399,193.08,193.01,1.5601]
[1739385088663,0.0353399,193.08,193.07,5.1792]
[1739385090659,5.1773,193.15,193.01,1.5601]
[1739385090860,1.6557,193.19,193.03,23.10544063]
[1739385091058,23.10544063,193.17,193.01,1.5601]
[1739385091564,5.1772,193.15,193.11,5.1781]
[1739385091957,5.1775,193.14,193.11,0.0353399]
[1739385093162,5.1776,193.13,193.11,0.0353399]
[1739385093859,23.10544063,193.14,193.11,0.0353399]
[1739385094056,5.21496255,193.15,193.11,0.0353399]
[1739385094457,28.28294063,193.14,193.11,0.0353399]
[1739385094964,5.1775,193.14,193.11,0.0353399]
[1739385095159,0.03766255,193.15,193.11,0.0353399]
[1739385095664,1.5825,193.25,193.2,5.1757]
[1739385095665,5.1749,193.24,193.2,5.1757]
[1739385095864,23.10544063,193.23,193.12,1.6215]
[1739385096767,5.1754,193.22,193.17,5.1765]
[1739385096962,0.03568301,193.19,193.16,0.0348371]
[1739385099167,0.03568301,193.19,193.16,5.2113371]
[1739385099668,23.10544063,193.17,193.07,1.5774]
[1739385099870,23.10544063,193.14,193.07,1.5774]
[1739385100670,23.10544063,193.11,193.01,1.564]
[1739385100871,0.03975494,193.12,193.09,0.03568345]
[1739385101060,5.21765494,193.12,193.09,0.03568345]
[1739385101269,5.1779,193.12,193.06,5.1794]
[1739385101570,5.2128207,193.12,193.09,0.03650346]
[1739385102772,0.0349207,193.12,193.09,0.03650346]
[1739385103072,5.1784,193.1,193.09,0.03650346]
[1739385106274,28.28354063,193.11,193.09,0.03650346]
[1739385106865,5.2128207,193.12,193.09,0.03650346]
[1739385107675,0.0349207,193.12,193.09,0.03650346]
[1739385111178,0.0349207,193.12,193.1,5.1783]
[1739385111683,0.0349207,193.12,193.11,5.1781]
[1739385111871,0.0349207,193.12,193.09,0.03650346]
[1739385112077,23.10544063,193.1,193.09,0.03650346]
[1739385112270,23.10544063,193.1,193.02,1.6146]
[1739385113380,0.03830527,193.08,193.02,5.1804]
[1739385114587,5.1797,193.06,193.01,6.7448]
[1739385114787,23.10544063,193.07,193.01,1.564]
[1739385115091,5.18,193.04,193.01,1.564]
[1739385115285,23.10544063,193.07,192.98,1.5635]
[1739385115478,23.10544063,193.07,192.98,6.745]
[1739385115683,0.03595501,193.04,192.98,6.745]
[1739385116283,5.21595501,193.04,192.98,6.745]
[1739385116586,0.03595501,193.04,192.99,5.1813]
[1739385116781,0.03595501,193.04,192.98,1.5635]
[1739385117379,23.10544063,193.13,192.98,1.5635]
[1739385117588,3.2239,193.17,192.99,23.10544063]
[1739385117894,5.1778,193.13,192.99,23.10544063]
[1739385118089,1.6177,193.17,193.09,5.1786]
[1739385118592,0.03600504,193.15,193.11,0.03583253]
[1739385118889,23.10544063,193.15,193.08,5.1789]
[1739385119083,23.1402593,193.15,193.11,0.03551018]
[1739385120385,23.10544063,193.12,193.0,1.6291]
[1739385121691,0.0383157,193.08,193.04,5.1797]
[1739385121894,0.0383157,193.08,193.0,1.6291]
[1739385122594,23.10544063,193.18,193.0,1.6291]
[1739385122794,5.1774,193.14,193.02,23.14386374]
[1739385122987,23.10544063,193.18,193.0,1.6291]
[1739385123186,23.10544063,193.13,193.0,1.6291]
[1739385123392,5.1782,193.11,193.07,5.1791]
[1739385123689,23.10544063,193.18,193.02,23.10544063]
[1739385123883,0.03380275,193.11,193.07,0.03964219]
[1739385124081,5.1766,193.17,193.12,5.1778]
[1739385124286,33.94186281,193.25,193.08,24.70254063]
[1739385124991,23.10544063,193.25,193.08,24.70254063]
[1739385125385,0.03345456,193.18,193.15,0.03451557]
[1739385125590,5.1746,193.24,193.19,5.1759]
[1739385125997,126.9009645,193.27,193.19,5.1759]
[1739385126294,126.9009645,193.27,193.17,5.1763]
[1739385126793,23.13860833,193.24,193.2,0.03911791]
[1739385128196,5.1751,193.23,193.2,0.03911791]
[1739385128600,23.13860833,193.24,193.2,0.03911791]
[1739385128796,5.1754,193.21,193.2,0.03911791]
[1739385129599,5.1762,193.18,193.09,1.6036]
[1739385130489,23.10544063,193.21,193.09,1.6036]
[1739385130694,0.03676211,193.15,193.12,0.03637832]
[1739385131398,5.1759,193.2,193.14,5.1773]
[1739385131699,5.1759,193.2,193.1,1.5101]
[1739385132099,23.10544063,193.24,193.1,1.5101]
[1739385132302,5.1755,193.21,193.16,5.1767]
[1739385132598,0.03849078,193.2,193.1,1.5101]
[1739385132799,0.03849078,193.2,193.17,5.1765]
[1739385133994,0.03849078,193.2,193.13,0.03593739]
[1739385134802,0.03849078,193.2,193.16,5.1766]
[1739385135305,0.03849078,193.2,193.13,0.03593739]
[1739385136307,5.1771,193.15,193.13,0.03593739]
[1739385137312,0.03872586,193.16,193.13,0.03593739]
[1739385138006,5.21552586,193.16,193.13,0.03593739]
[1739385138608,5.1772,193.15,193.13,0.03593739]
[1739385139608,5.1773,193.14,193.13,0.03593739]
[1739385140599,0.03872586,193.16,193.13,0.03593739]
[1739385141008,0.03872586,193.16,193.13,5.21323739]
[1739385141312,0.03872586,193.16,193.13,0.03593739]
[1739385141711,23.10544063,193.15,193.13,0.03593739]
[1739385141908,23.10544063,193.15,193.03,3.1174]
[1739385141909,5.1773,193.14,193.03,3.1174]
[1739385142109,5.1773,193.14,193.08,5.1788]
[1739385142512,5.1773,193.14,193.03,3.1174]
[1739385142715,28.28254063,193.15,193.09,5.1784]
[1739385142907,3.0277,193.17,193.03,3.1174]
[1739385142908,1.5163,193.17,193.03,3.1174]
[1739385143111,0.0365202,193.14,193.1,0.03921745]
[1739385143309,5.2139202,193.14,193.1,0.03921745]
[1739385144309,0.0365202,193.14,193.1,0.03921745]
[1739385144712,0.0365202,193.14,193.13,5.1776]
[1739385145618,23.10544063,193.22,193.16,5.1766]
[1739385145619,5.1759,193.2,193.16,5.1766]
[1739385146011,23.10544063,193.22,193.11,4.8424]
[1739385146715,0.03436193,193.18,193.15,0.03588313]
[1739385150316,5.21066193,193.18,193.15,0.03588313]
[1739385152214,5.1768,193.16,193.15,0.03588313]
[1739385155416,0.03436193,193.18,193.15,0.03588313]
[1739385156111,5.1768,193.17,193.15,0.03588313]
[1739385156313,0.03436193,193.18,193.15,0.03588313]
[1739385156815,5.177,193.15,193.06,1.6572]
[1739385157017,23.10544063,193.16,193.03,3.1024]
[1739385157218,23.10544063,193.13,193.03,3.1024]
[1739385157421,5.1781,193.11,193.06,5.1792]
[1739385157722,23.10544063,193.13,193.03,3.1024]
[1739385158221,0.03352156,193.1,193.06,0.03536046]
[1739385159025,5.21192156,193.1,193.06,0.03536046]
[1739385159921,0.03352156,193.1,193.06,0.03536046]
[1739385160119,5.179,193.08,193.06,0.03536046]
[1739385161120,23.13896219,193.1,192.97,3.1291]
[1739385161424,23.10544063,193.07,192.95,1.5683]
[1739385161623,5.1803,193.03,192.97,5.1819]
[1739385162124,23.10544063,193.04,192.94,28.63435085]
[1739385162325,23.10544063,193.01,192.94,28.63435085]
[1739385162526,23.10544063,193.01,192.98,0.03373885]
[1739385162819,23.10544063,193.01,192.94,28.63435085]
[1739385163023,23.10544063,192.98,192.94,28.63435085]
[1739385163226,28.28784063,192.95,192.94,21.61265085]
[1739385163621,5.1824,192.95,192.88,214.67006318]
[1739385163825,5.1824,192.95,192.87,7.16734454]
[1739385164025,0.03441056,192.93,192.87,7.16734454]
[1739385164329,0.03441056,192.93,192.88,5.1842]
[1739385166129,0.03441056,192.93,192.87,7.16734454]
[1739385166330,0.03441056,192.93,192.89,5.1838]
[1739385168029,0.03441056,192.93,192.83,1.6428]
[1739385168233,0.03441056,192.93,192.84,23.10544063]
[1739385168728,0.03441056,192.93,192.92,5.1832]
[1739385168936,23.10544063,193.04,192.87,23.10544063]
[1739385169832,5.1806,193.02,192.98,5.1815]
[1739385170035,0.03691147,192.97,192.94,0.0327585]
[1739385170332,0.03593331,192.97,192.96,5.1821]
[1739385170631,5.18,193.04,192.94,0.03587537]
[1739385170832,23.10544063,193.07,192.94,0.03587537]
[1739385171127,5.1797,193.05,193.01,5.1808]
[1739385171327,23.10544063,193.1,193.01,5.1808]
[1739385171529,5.1795,193.06,193.01,5.1808]
[1739385171724,5.1795,193.06,193.02,0.03646051]
[1739385171925,0.03502423,193.05,193.02,0.03646051]
[1739385174636,0.03502423,193.05,193.03,5.1802]
[1739385175137,0.03502423,193.05,193.02,0.03646051]
[1739385175338,0.03502423,193.05,193.04,5.18]
[1739385176138,0.03502423,193.05,193.02,0.03646051]
[1739385176337,0.03502423,193.05,193.03,5.1802]
[1739385177340,0.03502423,193.05,193.02,0.03646051]
[1739385177540,0.03502423,193.05,193.02,5.21696051]
[1739385178941,0.03502423,193.05,193.04,5.18]
[1739385179239,0.03502423,193.05,193.02,0.03646051]
[1739385180038,0.03502423,193.05,193.03,5.1802]
[1739385180645,0.03502423,193.05,193.04,5.18]
[1739385181144,0.03502423,193.05,193.02,5.21696051]
[1739385181345,0.03502423,193.05,193.02,0.03646051]
[1739385182847,14.4985668,193.1,193.02,0.03646051]
[1739385183746,5.1789,193.09,193.05,5.1797]
[1739385183945,5.1789,193.09,193.02,0.03646051]
[1739385184146,0.03549982,193.09,193.02,0.03646051]
[1739385184349,0.03549982,193.09,193.07,5.1791]
[1739385185452,5.1792,193.07,193.06,0.03795664]
[1739385185750,19.6777668,193.07,193.06,0.03795664]
[1739385186150,14.4985668,193.04,192.99,1.5747]
[1739385186752,14.4985668,193.01,192.9,1.5914]
[1739385186950,14.4985668,193.01,192.91,1.6539]
[1739385187353,0.03752324,192.97,192.94,0.0356848]
[1739385190554,5.1807,193.02,192.94,0.0356848]
[1739385190857,23.22036798,193.07,192.94,0.0356848]
[1739385191057,23.22036798,193.07,192.91,1.6539]
[1739385191357,5.18,193.04,193.0,5.181]
[1739385191656,23.22036798,193.1,192.92,23.22036798]
[1739385191852,0.0326778,193.04,193.01,5.1806]
[1739385192050,0.0326778,193.04,193.01,6.8012]
[1739385192253,0.0326778,193.04,193.01,1.6206]
[1739385193063,0.0326778,193.04,193.02,5.1805]
[1739385193456,0.0326778,193.04,193.01,1.6206]
[1739385194359,0.0326778,193.04,193.03,5.1803]
[1739385194759,23.22036798,193.1,193.01,1.6206]
[1739385194963,5.1785,193.1,193.05,5.1795]
[1739385195762,23.22036798,193.13,193.03,5.18]
[1739385196063,0.03735544,193.09,193.06,0.03751323]
[1739385196455,23.22036798,193.1,193.03,5.18]
[1739385196762,0.03822541,193.09,193.06,0.03694518]
[1739385198954,0.03822541,193.09,193.06,5.21634518]
[1739385201157,0.03822541,193.09,193.08,5.1789]
[1739385201564,0.03822541,193.09,193.06,0.03694518]
[1739385202265,0.03822541,193.09,193.07,5.1792]
[1739385202465,0.03822541,193.09,193.06,0.03694518]
[1739385202965,0.03822541,193.09,193.08,5.1789]
[1739385204969,0.03822541,193.09,193.06,0.03694518]
[1739385205160,0.03822541,193.09,193.07,5.1791]
[1739385206260,0.03822541,193.09,193.06,0.03694518]
[1739385206968,5.21692541,193.09,193.06,0.03694518]
[1739385207271,0.03822541,193.09,193.06,0.03694518]
[1739385209271,0.03822541,193.09,193.07,5.1791]
[1739385209870,0.03822541,193.09,193.06,0.03694518]
[1739385211474,14.49068136,193.07,193.06,0.03694518]
[1739385213176,19.66988136,193.07,193.06,0.03694518]
[1739385215070,0.03822541,193.09,193.06,0.03694518]
[1739385215973,0.03822541,193.09,193.07,5.179]
[1739385217978,0.03822541,193.09,193.06,0.03694518]
[1739385218171,14.49068136,193.07,193.06,0.03694518]
[1739385218475,5.1798,193.05,193.0,5.1809]
[1739385219474,0.03614773,193.04,193.01,0.0336815]
[1739385219771,5.21614773,193.04,193.01,0.0336815]
[1739385220377,0.03614773,193.04,193.01,0.0336815]
[1739385221176,0.03614773,193.04,193.03,5.1803]
[1739385221379,5.1792,193.08,193.03,5.1803]
[1739385221577,14.49068136,193.13,193.01,0.0336815]
[1739385221778,5.1782,193.11,193.0,14.49068136]
[1739385221977,14.49068136,193.13,193.0,14.49068136]
[1739385222375,14.49068136,193.13,193.07,5.1792]
[1739385222575,0.03684865,193.08,193.05,0.03833023]
[1739385222776,0.03466413,193.08,193.05,0.03833023]
[1739385222976,5.1792,193.07,193.05,0.03833023]
[1739385224480,0.03466413,193.08,193.05,0.03833023]
[1739385226076,0.03466413,193.08,193.07,5.1792]
[1739385227685,5.177,193.16,193.05,0.03833023]
[1739385227887,5.177,193.16,193.05,3.18193023]
[1739385228183,5.177,193.16,193.05,3.1436]
[1739385228484,19.66918136,193.1,192.95,7.16734454]
[1739385228679,19.66918136,193.1,192.96,3.2675]
[1739385228882,0.03482627,193.04,193.01,0.03846825]
[1739385229084,14.49068136,193.1,193.07,5.1791]
[1739385229384,19.66828136,193.13,193.07,5.1791]
[1739385229584,19.66828136,193.13,192.96,3.2675]
[1739385229786,5.1776,193.13,193.06,5.1794]
[1739385230384,0.03486232,193.11,193.08,0.03676434]
[1739385231578,23.18531026,193.2,193.08,0.03676434]
[1739385231783,103.82439578,193.22,193.08,0.03676434]
[1739385231987,5.1752,193.22,193.07,23.18531026]
[1739385232783,5.1752,193.22,193.17,5.1765]
[1739385233388,0.03592438,193.21,193.18,0.0380573]
[1739385234489,0.03592438,193.21,193.19,5.1757]
[1739385234792,0.03592438,193.21,193.18,0.0380573]
[1739385235287,89.40810081,193.25,193.2,5.1755]
[1739385235591,5.1744,193.25,193.2,5.1755]
[1739385235992,23.18531026,193.26,193.18,5.2141573]
[1739385236287,23.18531026,193.26,193.14,1.5851]
[1739385236486,23.18531026,193.26,193.2,0.03607177]
[1739385236487,0.03884265,193.24,193.2,0.03607177]
[1739385237092,5.1754,193.21,193.2,0.03607177]
[1739385238191,23.18531026,193.23,193.08,1.656]
[1739385238390,23.18531026,193.16,193.08,1.656]
[1739385239191,5.1776,193.13,193.08,6.8349]
[1739385239498,23.18531026,193.16,193.1,0.03696619]
[1739385239499,0.03988316,193.14,193.1,0.03696619]
[1739385240395,5.1776,193.13,193.1,0.03696619]
[1739385240591,0.03988316,193.14,193.1,0.03696619]
[1739385241696,0.03988316,193.14,193.11,5.1779]
[1739385241899,0.03988316,193.14,193.1,0.03696619]
[1739385242093,23.18531026,193.22,193.1,0.03696619]
[1739385242294,23.18531026,193.22,193.07,1.6169]
[1739385243096,23.18531026,193.22,193.14,5.1772]
[1739385243097,5.1763,193.18,193.14,5.1772]
[1739385243392,0.03731745,193.16,193.14,5.1772]
[1739385244093,0.03731745,193.16,193.13,0.03968724]
[1739385244297,23.22262771,193.16,193.13,0.03968724]
[1739385244799,23.22262771,193.16,192.95,80.43066044]
[1739385245099,23.18531026,193.12,192.99,3.2118]
[1739385245298,23.18531026,193.12,193.04,5.18]
[1739385245501,23.18531026,193.12,192.99,3.2118]
[1739385245702,23.18531026,193.09,192.99,3.2118]
[1739385245892,23.22158609,193.09,193.06,0.03822358]
[1739385246098,23.22158609,193.09,193.06,0.03599775]
[1739385246701,5.179,193.08,193.06,0.03599775]
[1739385247207,5.1792,193.07,193.06,0.03599775]
[1739385251805,23.22158609,193.09,192.99,1.5711]
[1739385252003,23.18531026,193.05,192.97,1.6622]
[1739385252203,23.18531026,193.05,192.95,1.6658]
[1739385252405,23.18531026,193.05,192.92,1.5958]
[1739385253009,0.03273002,193.0,192.97,0.03965724]
[1739385253210,23.18531026,193.02,192.92,1.5958]
[1739385253408,0.03924956,193.0,192.97,0.03285734]
[1739385254811,5.1816,192.99,192.97,0.03285734]
[1739385256012,5.22034956,193.0,192.97,0.03285734]
[1739385259623,0.03924956,193.0,192.97,0.03285734]
[1739385259824,5.1815,192.99,192.97,0.03285734]
[1739385265129,0.03924956,193.0,192.97,0.03285734]
[1739385265326,14.54837523,193.0,192.97,0.03285734]
[1739385265828,19.72967523,193.0,192.97,0.03285734]
[1739385266030,14.54837523,193.0,192.97,0.03285734]
[1739385266527,14.54837523,193.0,192.91,5.1834]
[1739385266528,29.0575009,193.0,192.91,5.1834]
[1739385266729,14.50912567,192.94,192.89,2.62626]
[1739385267625,5.22017476,192.93,192.9,0.0390078]
[1739385267829,5.22017476,192.93,192.89,2.62626]
[1739385267830,5.1832,192.93,192.89,2.62626]
[1739385268222,5.21701941,192.93,192.9,0.03338171]
[1739385270032,5.1834,192.92,192.9,0.03338171]
[1739385271633,5.21681941,192.93,192.9,0.03338171]
[1739385272534,0.03381941,192.93,192.9,0.03338171]
[1739385273938,5.1833,192.92,192.9,0.03338171]
[1739385274736,5.1835,192.91,192.9,0.03338171]
[1739385276637,0.03381941,192.93,192.9,0.03338171]
[1739385278539,0.03381941,192.93,192.9,5.21708171]